bitfinex/quotes_BTCUSD_20240823
["timestamp","ask_amount","ask_price","bid_price","bid_amount"]
[1724435544850,0.02493962,62907.0,62906.0,1.068325]
[1724435545054,0.00170751,62919.0,62911.0,0.317906]
[1724435545278,0.00170751,62919.0,62911.0,0.16400298]
[1724435545477,0.007,62914.0,62911.0,0.16400298]
[1724435545685,0.007,62914.0,62912.0,0.16400298]
[1724435545904,0.02493375,62918.0,62913.0,0.87640098]
[1724435546064,0.00907501,62936.0,62917.0,1.36918864]
[1724435546330,0.49229154,62935.0,62934.0,0.4063]
[1724435546543,0.00907501,62936.0,62935.0,0.79447]
[1724435546755,0.00907501,62936.0,62935.0,1.13977298]
[1724435546957,0.00907501,62936.0,62935.0,0.34530298]
[1724435547235,0.00907501,62936.0,62935.0,0.50419698]
[1724435547387,0.02307501,62936.0,62935.0,0.34530298]
[1724435547811,0.02307501,62936.0,62935.0,0.38866005]
[1724435548005,0.02307501,62936.0,62935.0,0.16400298]
[1724435548329,0.02307501,62936.0,62921.0,0.4134]
[1724435548534,0.02307501,62936.0,62921.0,0.57740298]
[1724435548762,0.00907501,62936.0,62921.0,0.57740298]
[1724435548948,0.00907501,62936.0,62935.0,0.001]
[1724435549203,0.00907501,62936.0,62921.0,0.89525798]
[1724435549632,0.02307501,62936.0,62921.0,0.57740298]
[1724435549833,0.00907501,62936.0,62921.0,0.57740298]
[1724435550071,0.48179098,62935.0,62921.0,0.4134]
[1724435550239,0.02307501,62936.0,62921.0,0.57740298]
[1724435550450,0.00907501,62936.0,62921.0,0.57740298]
[1724435550650,0.02492762,62932.0,62921.0,0.57740298]
[1724435550855,0.4143,62931.0,62910.0,0.701713]
[1724435551065,0.4143,62931.0,62921.0,0.00057395]
[1724435551263,0.1,62930.0,62921.0,0.00057395]
[1724435551516,0.04747097,62928.0,62921.0,0.00057395]
[1724435551871,0.1,62930.0,62921.0,0.00057395]
[1724435552466,0.04747097,62933.0,62921.0,0.00057395]
[1724435552659,0.21147395,62933.0,62921.0,0.00057395]
[1724435552863,0.04747097,62931.0,62921.0,0.00057395]
[1724435553007,0.158909,62929.0,62921.0,0.00057395]
[1724435553240,0.04747097,62928.0,62921.0,0.00057395]
[1724435553609,0.07240256,62928.0,62921.0,0.00057395]
[1724435553913,0.757026,62922.0,62921.0,0.00057395]
[1724435554036,1.55873498,62922.0,62921.0,0.00057395]
[1724435554243,2.05981531,62922.0,62921.0,0.00057395]
[1724435554450,2.17954727,62922.0,62921.0,0.00057395]
[1724435554649,2.18381531,62922.0,62921.0,0.00057395]
[1724435554850,0.476841,62914.0,62913.0,0.096955]
[1724435555081,0.1,62914.0,62913.0,0.096955]
[1724435555276,0.17123884,62914.0,62913.0,0.096955]
[1724435555453,0.28388474,62914.0,62913.0,0.096955]
[1724435555657,0.12493774,62914.0,62913.0,0.096955]
[1724435555839,0.02493774,62914.0,62913.0,0.096955]
[1724435556235,0.02493774,62914.0,62913.0,0.0791168]
[1724435556872,0.02503774,62914.0,62913.0,0.0791168]
[1724435557078,0.03903774,62914.0,62913.0,0.0791168]
[1724435557525,0.02503774,62914.0,62913.0,0.0791168]
[1724435557701,0.03303774,62914.0,62913.0,0.2380658]
[1724435557911,0.03303774,62914.0,62913.0,0.0791168]
[1724435558072,0.03303774,62914.0,62913.0,0.2380658]
[1724435558278,0.03303774,62914.0,62913.0,0.24311978]
[1724435558472,0.03303774,62914.0,62913.0,0.71996778]
[1724435558771,0.03303774,62914.0,62913.0,1.03786678]
[1724435559039,0.02503774,62914.0,62913.0,1.03786678]
[1724435559382,0.03203774,62914.0,62913.0,1.43486678]
[1724435559578,0.02503774,62914.0,62913.0,1.43486678]
[1724435559788,0.02503774,62914.0,62913.0,1.11696778]
[1724435559984,0.02603774,62914.0,62913.0,0.64011978]
[1724435560392,0.02503774,62914.0,62913.0,0.4761168]
[1724435560926,0.02503774,62914.0,62913.0,0.0791168]
[1724435562095,0.02503774,62914.0,62907.0,0.000824]
[1724435562096,0.38844072,62914.0,62907.0,0.000824]
[1724435562324,0.79481,62908.0,62907.0,0.000824]
[1724435562531,1.05881298,62908.0,62907.0,0.000824]
[1724435562957,1.13103099,62908.0,62907.0,0.000824]
[1724435563154,1.13003099,62908.0,62907.0,0.000824]
[1724435563358,0.2187124,62908.0,62907.0,0.000824]
[1724435563608,0.08521801,62908.0,62907.0,0.000824]
[1724435563971,0.014,62908.0,62907.0,0.000824]
[1724435564103,0.028,62908.0,62907.0,0.000824]
[1724435565337,0.02643774,62914.0,62907.0,0.000824]
[1724435565543,0.0001,62908.0,62907.0,0.000824]
[1724435565720,0.0141,62908.0,62907.0,0.000824]
[1724435566535,0.0001,62908.0,62907.0,0.000824]
[1724435566733,0.0141,62908.0,62907.0,0.000824]
[1724435567022,0.0001,62908.0,62907.0,0.32379098]
[1724435567229,0.0001,62908.0,62907.0,0.64171998]
[1724435567432,0.0141,62908.0,62907.0,0.64171998]
[1724435567637,0.0141,62908.0,62907.0,0.95964898]
[1724435567843,0.0141,62908.0,62907.0,0.64171998]
[1724435568533,0.0141,62908.0,62907.0,0.16482698]
[1724435568844,0.0001,62908.0,62907.0,0.32379098]
[1724435568971,0.0001,62908.0,62907.0,0.96282799]
[1724435569197,0.0011,62908.0,62907.0,0.96282799]
[1724435569379,0.0001,62908.0,62907.0,0.96282799]
[1724435569559,0.0001,62908.0,62907.0,0.96582799]
[1724435569761,0.0011,62908.0,62907.0,0.96582799]
[1724435569973,0.0011,62908.0,62907.0,0.96282799]
[1724435570172,0.0011,62908.0,62907.0,0.16482698]
[1724435570397,0.0021,62908.0,62907.0,0.16782698]
[1724435570619,0.0001,62908.0,62907.0,0.32379098]
[1724435570779,0.0001,62908.0,62907.0,0.000824]
[1724435571033,0.0001,62908.0,62907.0,0.16482698]
[1724435571655,0.0001,62908.0,62907.0,0.32379098]
[1724435571841,0.0001,62908.0,62907.0,0.95964898]
[1724435572107,0.0011,62908.0,62907.0,0.64371998]
[1724435572325,0.0011,62908.0,62907.0,0.002824]
[1724435572525,0.0001,62908.0,62907.0,0.000824]
[1724435572701,0.0041,62908.0,62907.0,0.000824]
[1724435573100,0.0001,62908.0,62907.0,0.000824]
[1724435573302,0.0011,62908.0,62907.0,0.16482698]
[1724435573520,0.0011,62908.0,62907.0,0.32379098]
[1724435573750,0.0011,62908.0,62907.0,0.64171998]
[1724435573895,0.0051,62908.0,62907.0,0.64171998]
[1724435574154,0.0051,62908.0,62907.0,0.95964898]
[1724435575110,0.0001,62908.0,62907.0,0.95964898]
[1724435575303,0.0001,62908.0,62907.0,0.64171998]
[1724435575514,0.0011,62908.0,62907.0,0.16482698]
[1724435575725,0.0001,62908.0,62907.0,0.000824]
[1724435576539,0.0001,62908.0,62907.0,0.001824]
[1724435576938,0.00089716,62908.0,62907.0,0.000824]
[1724435577374,0.00189716,62908.0,62907.0,0.000824]
[1724435578391,0.00089716,62908.0,62907.0,0.000824]
[1724435578839,0.00489716,62908.0,62907.0,0.000824]
[1724435579045,0.00089716,62908.0,62907.0,0.000824]
[1724435579452,0.00189716,62908.0,62907.0,0.000824]
[1724435579608,0.00089716,62908.0,62907.0,0.000824]
[1724435579806,0.00489716,62908.0,62907.0,0.000824]
[1724435580426,0.00489716,62908.0,62907.0,0.64171998]
[1724435580648,0.00489716,62908.0,62907.0,0.16482698]
[1724435580859,0.00489716,62908.0,62907.0,0.32379098]
[1724435581081,0.00489716,62908.0,62907.0,0.64171998]
[1724435581282,0.00489716,62908.0,62907.0,0.95964898]
[1724435581436,0.00589716,62908.0,62907.0,0.16482698]
[1724435581699,0.00589716,62908.0,62907.0,0.32379098]
[1724435581872,0.00089716,62908.0,62907.0,0.64171998]
[1724435582081,0.00089716,62908.0,62907.0,0.96164898]
[1724435582478,0.00089716,62908.0,62907.0,0.64171998]
[1724435582737,0.00189716,62908.0,62907.0,0.95964898]
[1724435582896,0.00189716,62908.0,62907.0,0.64171998]
[1724435583321,0.00189716,62908.0,62907.0,0.64271998]
[1724435583728,0.00189716,62908.0,62907.0,0.96064898]
[1724435584193,0.00189716,62908.0,62907.0,1.53474898]
[1724435584403,0.00189716,62908.0,62907.0,1.85267798]
[1724435584558,0.00089716,62908.0,62907.0,1.85167798]
[1724435585345,0.00089716,62908.0,62907.0,1.85367798]
[1724435585554,0.00189716,62908.0,62907.0,1.85367798]
[1724435585764,0.00189716,62908.0,62907.0,1.85267798]
[1724435586004,0.0009064,62913.0,62912.0,1.687764]
[1724435586275,0.0009064,62930.0,62912.0,1.687764]
[1724435586276,0.0009064,62930.0,62929.0,1.113363]
[1724435586506,0.0009064,62930.0,62929.0,2.17148398]
[1724435587018,0.00917501,62936.0,62935.0,1.431046]
[1724435587212,0.00917501,62936.0,62935.0,2.17134898]
[1724435588244,0.0009064,62938.0,62937.0,1.433001]
[1724435588451,0.0009064,62938.0,62937.0,2.17130398]
[1724435588875,0.0009064,62938.0,62937.0,2.17330398]
[1724435589076,0.0009064,62938.0,62937.0,2.17130398]
[1724435589903,0.0009064,62938.0,62937.0,1.85352598]
[1724435590109,0.0009064,62938.0,62937.0,1.53474798]
[1724435590716,0.0009064,62938.0,62937.0,1.85252598]
[1724435591580,0.0009064,62938.0,62937.0,1.85552598]
[1724435591581,0.0019064,62938.0,62937.0,1.85552598]
[1724435591744,0.0019064,62938.0,62937.0,1.53774798]
[1724435591952,0.0019064,62938.0,62937.0,1.53974798]
[1724435592160,0.0019064,62938.0,62937.0,1.85852598]
[1724435592366,0.0009064,62938.0,62937.0,1.85552598]
[1724435592765,0.0019064,62938.0,62937.0,2.17730398]
[1724435592935,0.0019064,62938.0,62937.0,1.85952598]
[1724435593134,0.0009064,62938.0,62937.0,1.85652598]
[1724435593340,0.0001,62950.0,62937.0,1.85652598]
[1724435593341,0.0001,62950.0,62940.0,0.760141]
[1724435593542,0.0001,62950.0,62940.0,1.72291264]
[1724435593915,0.0001,62950.0,62940.0,2.67419864]
[1724435594115,0.0001,62950.0,62946.0,0.003]
[1724435594315,2.2e-07,62952.0,62951.0,1.55496666]
[1724435594514,0.00907501,62963.0,62958.0,0.79718]
[1724435594515,2.2e-07,62959.0,62958.0,0.79718]
[1724435594626,2.2e-07,62959.0,62958.0,1.98072698]
[1724435594828,2.2e-07,62959.0,62958.0,1.97772698]
[1724435595497,2.2e-07,62959.0,62958.0,1.66005498]
[1724435596143,2.2e-07,62959.0,62958.0,1.34238298]
[1724435596353,2.2e-07,62959.0,62958.0,0.16400298]
[1724435596745,0.00100022,62959.0,62958.0,0.64351098]
[1724435597017,0.00100022,62959.0,62958.0,1.27885498]
[1724435597219,2.2e-07,62959.0,62958.0,1.27585498]
[1724435597432,2.2e-07,62959.0,62958.0,2.16412698]
[1724435597633,0.00100022,62959.0,62958.0,1.85045498]
[1724435597857,0.00100022,62959.0,62958.0,1.84945498]
[1724435598062,0.00100022,62959.0,62958.0,2.16712698]
[1724435598282,5.157e-05,62959.0,62958.0,2.17212698]
[1724435598878,5.157e-05,62959.0,62958.0,2.17112698]
[1724435599079,5.157e-05,62959.0,62958.0,2.16712698]
[1724435599504,0.00907501,62963.0,62958.0,2.16712698]
[1724435599505,0.00907501,62963.0,62962.0,1.511078]
[1724435599665,0.00907501,62963.0,62962.0,1.99473198]
[1724435599868,0.00907501,62963.0,62962.0,2.31338298]
[1724435600083,0.00907501,62963.0,62962.0,2.31438298]
[1724435600285,1e-08,62963.0,62962.0,1.99373198]
[1724435600561,1e-08,62963.0,62962.0,2.39840116]
[1724435600905,1e-08,62963.0,62962.0,0.95812998]
[1724435601302,1e-08,62963.0,62962.0,0.64047898]
[1724435601821,1e-08,62963.0,62962.0,1.67708098]
[1724435602033,1e-08,62963.0,62962.0,2.51388298]
[1724435602237,1e-08,62963.0,62962.0,2.19723198]
[1724435602397,1e-08,62963.0,62962.0,2.19323198]
[1724435602646,1e-08,62963.0,62962.0,2.20723198]
[1724435603142,1e-08,62963.0,62962.0,2.19523198]
[1724435603337,1e-08,62963.0,62962.0,2.19223198]
[1724435603543,1e-08,62963.0,62962.0,1.88858098]
[1724435603833,1e-08,62963.0,62962.0,1.30764098]
[1724435603974,1e-08,62963.0,62962.0,0.95812998]
[1724435604175,1e-08,62963.0,62962.0,0.97212998]
[1724435604379,1e-08,62963.0,62962.0,0.65447898]
[1724435604624,1e-08,62963.0,62962.0,0.64047898]
[1724435604838,1e-08,62963.0,62962.0,0.33682798]
[1724435604964,1e-08,62963.0,62962.0,0.97212998]
[1724435605175,1e-08,62963.0,62962.0,0.65447898]
[1724435605574,1e-08,62963.0,62962.0,0.97212998]
[1724435605970,1e-08,62963.0,62962.0,1.28978098]
[1724435606180,1e-08,62963.0,62962.0,0.95812998]
[1724435606614,0.00100001,62963.0,62962.0,0.17800298]
[1724435606826,0.00100001,62963.0,62962.0,0.16400298]
[1724435606827,1e-08,62963.0,62962.0,0.16400298]
[1724435607063,1e-08,62963.0,62962.0,0.32282798]
[1724435607269,0.00100001,62963.0,62962.0,0.65447898]
[1724435607441,1e-08,62963.0,62959.0,0.00100022]
[1724435607648,1e-08,62963.0,62960.0,0.16400298]
[1724435607853,0.00100001,62963.0,62962.0,0.014]
[1724435608054,0.00100001,62963.0,62962.0,0.32282798]
[1724435608055,1e-08,62963.0,62962.0,0.32282798]
[1724435608476,1e-08,62963.0,62962.0,0.16400298]
[1724435609019,1e-08,62963.0,62959.0,0.00100022]
[1724435609020,0.1913,62962.0,62959.0,0.00100022]
[1724435609230,0.1913,62962.0,62960.0,0.16400298]
[1724435609464,0.1913,62962.0,62958.0,0.000824]
[1724435609922,0.21621643,62962.0,62958.0,0.000824]
[1724435610148,0.21621643,62962.0,62961.0,0.158828]
[1724435610402,0.02491643,62962.0,62961.0,0.95814298]
[1724435610633,0.02491643,62962.0,62961.0,0.64048698]
[1724435611093,0.02491643,62962.0,62958.0,0.318492]
[1724435611314,0.02591643,62962.0,62959.0,0.32283498]
[1724435611557,0.02591643,62962.0,62958.0,0.009824]
[1724435611779,0.02591643,62962.0,62961.0,0.158828]
[1724435612073,0.02591643,62962.0,62961.0,1.27579898]
[1724435612315,0.02591643,62962.0,62961.0,1.59345498]
[1724435612541,0.02591643,62962.0,62961.0,2.18632416]
[1724435612781,0.02591643,62962.0,62961.0,1.46299898]
[1724435613013,0.02591643,62962.0,62961.0,0.95814298]
[1724435613249,0.02591643,62962.0,62958.0,0.000824]
[1724435613250,0.02491643,62962.0,62958.0,0.000824]
[1724435613479,0.02591643,62962.0,62961.0,0.167828]
[1724435613699,0.02591643,62962.0,62959.0,0.16400298]
[1724435613700,0.02491643,62962.0,62959.0,0.16400298]
[1724435613930,0.02491643,62962.0,62961.0,0.158828]
[1724435614156,0.02591643,62962.0,62961.0,0.014]
[1724435614355,0.02591643,62962.0,62958.0,0.000824]
[1724435614356,0.02491643,62962.0,62958.0,0.000824]
[1724435614532,0.41312649,62961.0,62958.0,0.000824]
[1724435615699,0.02591643,62962.0,62961.0,0.158828]
[1724435616131,0.02591643,62962.0,62959.0,0.16400298]
[1724435616394,0.0001,62961.0,62960.0,0.16400298]
[1724435616567,0.0001,62961.0,62960.0,0.32283398]
[1724435616735,0.0001,62961.0,62958.0,0.000824]
[1724435617124,0.0001,62961.0,62958.0,0.006824]
[1724435617300,0.0001,62961.0,62958.0,0.000824]
[1724435617499,0.0001,62961.0,62960.0,0.006]
[1724435617701,0.3797,62961.0,62960.0,0.006]
[1724435617910,0.3797,62961.0,62958.0,0.000824]
[1724435618453,0.3797,62961.0,62960.0,0.158831]
[1724435618672,0.0001,62961.0,62960.0,0.476493]
[1724435619084,0.0001,62961.0,62960.0,1.27581998]
[1724435619501,0.0001,62961.0,62960.0,0.95815798]
[1724435619870,0.0001,62961.0,62960.0,0.96515798]
[1724435620080,0.0001,62961.0,62960.0,0.95815798]
[1724435620626,0.0001,62961.0,62960.0,0.65349598]
[1724435620998,0.0001,62961.0,62960.0,0.97115798]
[1724435621178,0.0001,62961.0,62960.0,0.013]
[1724435621381,0.4166,62961.0,62960.0,0.013]
[1724435622240,0.4166,62961.0,62958.0,0.04847481]
[1724435622414,0.1839,62959.0,62958.0,0.04847481]
[1724435623431,1.39273698,62959.0,62958.0,0.04847481]
[1724435623708,1.39273698,62959.0,62939.0,0.02485115]
[1724435623709,0.1912,62945.0,62939.0,0.02485115]
[1724435623822,0.1912,62945.0,62933.0,0.03862337]
[1724435623823,0.5997,62945.0,62933.0,0.03862337]
[1724435624198,0.5997,62945.0,62937.0,0.158888]
[1724435624398,0.5997,62945.0,62933.0,0.03862337]
[1724435624399,0.02492464,62943.0,62935.0,0.158892]
[1724435624779,0.02492464,62943.0,62935.0,0.158893]
[1724435624887,0.02492464,62943.0,62935.0,0.158891]
[1724435625097,0.02492464,62943.0,62920.0,0.40566918]
[1724435625296,0.02492464,62943.0,62933.0,0.158897]
[1724435625517,0.02492464,62943.0,62921.0,0.16718108]
[1724435625518,0.02492464,62943.0,62921.0,0.16400298]
[1724435625717,0.02492464,62943.0,62933.0,0.001]
[1724435625924,0.02492464,62943.0,62933.0,0.317797]
[1724435626195,0.02492464,62943.0,62928.0,0.317821]
[1724435626399,0.02492464,62943.0,62929.0,0.16400298]
[1724435626400,0.03092464,62943.0,62929.0,0.16400298]
[1724435626685,0.03092464,62943.0,62930.0,0.00317766]
[1724435626896,0.03092464,62943.0,62940.0,0.31776]
[1724435627095,0.03092464,62943.0,62939.0,0.158881]
[1724435627096,0.02492464,62943.0,62939.0,0.158881]
[1724435627373,0.02492464,62943.0,62942.0,0.158876]
[1724435627791,0.02492464,62943.0,62928.0,0.40566918]
[1724435627792,0.02492464,62943.0,62920.0,0.317861]
[1724435627998,0.61672464,62943.0,62923.0,0.16400298]
[1724435628211,0.61672464,62943.0,62938.0,0.158885]
[1724435628413,0.61672464,62943.0,62935.0,0.317786]
[1724435628414,0.56907383,62943.0,62935.0,0.158892]
[1724435628640,0.56907383,62943.0,62923.0,0.16400298]
[1724435628641,0.57407383,62943.0,62933.0,0.001]
[1724435628852,0.0249239,62942.0,62936.0,0.15889]
[1724435629063,0.0249239,62942.0,62938.0,0.158886]
[1724435629280,0.0249239,62942.0,62934.0,0.31779]
[1724435629482,0.0249239,62942.0,62937.0,0.317777]
[1724435629696,0.0249239,62942.0,62938.0,0.158885]
[1724435629904,0.0249239,62942.0,62938.0,0.317772]
[1724435630102,0.0249239,62942.0,62923.0,0.16400298]
[1724435630309,0.57407383,62943.0,62938.0,0.002]
[1724435631463,0.56907383,62943.0,62929.0,0.317818]
[1724435631709,0.56907383,62943.0,62931.0,0.158903]
[1724435631908,0.05700738,62942.0,62938.0,0.001]
[1724435632116,0.3955,62940.0,62938.0,0.001]
[1724435633949,0.395,62939.0,62938.0,0.001]
[1724435634162,0.005,62939.0,62938.0,0.001]
[1724435634366,0.4031,62939.0,62938.0,0.001]
[1724435634507,0.56710298,62939.0,62938.0,0.001]
[1724435634732,0.56710298,62939.0,62929.0,0.158909]
[1724435634926,0.56210298,62939.0,62927.0,0.158913]
[1724435635186,0.56210298,62939.0,62931.0,0.001]
[1724435635187,0.51945217,62939.0,62931.0,0.001]
[1724435635388,0.51445217,62939.0,62923.0,0.317844]
[1724435635591,0.51445217,62939.0,62926.0,0.158915]
[1724435635797,0.51945217,62939.0,62938.0,0.001]
[1724435635981,0.24045816,62939.0,62909.0,0.317917]
[1724435636176,0.18700298,62938.0,62920.0,0.31786]
[1724435636381,0.18700298,62938.0,62919.0,0.317868]
[1724435636382,0.1918,62936.0,62919.0,0.317868]
[1724435636652,0.0249296,62934.0,62931.0,0.001]
[1724435636937,0.16400298,62933.0,62931.0,0.001]
[1724435637483,0.001,62932.0,62931.0,0.001]
[1724435637682,0.37990298,62932.0,62931.0,0.001]
[1724435637884,0.35490298,62932.0,62931.0,0.001]
[1724435638131,0.76700298,62932.0,62931.0,0.001]
[1724435638335,0.76700298,62932.0,62908.0,0.49229154]
[1724435638336,0.4133,62928.0,62908.0,0.49229154]
[1724435638540,0.1964,62929.0,62908.0,0.49229154]
[1724435638541,0.4133,62926.0,62908.0,0.49229154]
[1724435638744,0.1954,62929.0,62911.0,0.317908]
[1724435638947,0.1954,62929.0,62910.0,0.1915]
[1724435638948,0.1954,62929.0,62923.0,0.158922]
[1724435639096,0.1954,62929.0,62921.0,0.476785]
[1724435639097,0.02493284,62922.0,62921.0,0.476785]
[1724435639302,0.02493284,62922.0,62921.0,0.794643]
[1724435639616,0.02493284,62922.0,62921.0,0.158927]
[1724435639828,0.02493284,62922.0,62921.0,0.95864598]
[1724435640021,0.02493284,62922.0,62921.0,1.65300398]
[1724435640207,0.02493284,62922.0,62921.0,2.49011998]
[1724435640700,0.0009064,62958.0,62921.0,2.49011998]
[1724435640701,0.4074,62954.0,62953.0,0.158848]
[1724435640904,0.4074,62954.0,62939.0,0.1984]
[1724435641115,0.4074,62954.0,62953.0,0.476545]
[1724435641337,0.0009064,62958.0,62957.0,0.158838]
[1724435641537,0.0009064,62958.0,62945.0,0.317735]
[1724435641662,0.0009064,62958.0,62946.0,0.16400298]
[1724435641863,0.0001,62961.0,62958.0,0.04674441]
[1724435642723,0.75450298,62960.0,62958.0,0.04674441]
[1724435643503,0.75450298,62960.0,62958.0,0.05074441]
[1724435644172,0.75550298,62960.0,62958.0,0.05074441]
[1724435644369,0.026,62959.0,62958.0,0.05074441]
[1724435644571,0.69140298,62959.0,62958.0,0.04674441]
[1724435644724,0.97166168,62959.0,62958.0,0.04674441]
[1724435644912,1.28932868,62959.0,62958.0,0.04674441]
[1724435645285,0.68940298,62959.0,62958.0,0.04674441]
[1724435645410,0.58840298,62959.0,62958.0,0.04774441]
[1724435645610,0.56640298,62959.0,62958.0,0.04774441]
[1724435645907,0.4024,62959.0,62958.0,0.20558041]
[1724435646120,0.002,62959.0,62958.0,0.04774441]
[1724435646288,0.002,62959.0,62958.0,0.20658041]
[1724435646464,0.0001,62961.0,62960.0,0.158831]
[1724435647112,0.0001,62961.0,62960.0,0.476493]
[1724435647317,0.0001,62961.0,62960.0,0.794155]
[1724435647899,0.0001,62961.0,62960.0,0.476493]
[1724435648378,0.0001,62961.0,62960.0,0.794155]
[1724435648600,0.0001,62961.0,62960.0,0.476493]
[1724435648811,0.0001,62961.0,62958.0,0.04674441]
[1724435649022,0.0011,62961.0,62960.0,0.158831]
[1724435649148,0.0011,62961.0,62958.0,0.04674441]
[1724435649350,0.0011,62961.0,62958.0,0.20557941]
[1724435649556,0.0011,62961.0,62958.0,0.04674441]
[1724435649793,0.0001,62961.0,62958.0,0.20557941]
[1724435649982,0.0001,62961.0,62959.0,0.158832]
[1724435650243,0.0001,62961.0,62958.0,0.04674441]
[1724435650657,0.4029,62960.0,62958.0,0.04674441]
[1724435651191,0.4433,62960.0,62958.0,0.04674441]
[1724435651386,0.16400298,62959.0,62958.0,0.04674441]
[1724435651649,0.38400298,62959.0,62958.0,0.04674441]
[1724435652846,0.38500298,62959.0,62958.0,0.04674441]
[1724435653734,0.38600298,62959.0,62958.0,0.04674441]
[1724435653940,0.38500298,62959.0,62958.0,0.04674441]
[1724435654369,0.49796868,62959.0,62958.0,0.04674441]
[1724435654583,0.39000298,62959.0,62958.0,0.04674441]
[1724435654791,0.5752,62959.0,62958.0,0.04674441]
[1724435655005,0.3922,62959.0,62958.0,0.04774441]
[1724435655428,0.55520298,62959.0,62958.0,0.04774441]
[1724435655638,0.61465362,62959.0,62958.0,0.04874441]
[1724435655845,0.90253598,62959.0,62958.0,0.04874441]
[1724435656051,0.90253598,62959.0,62958.0,0.04774441]
[1724435656052,0.90153598,62959.0,62958.0,0.04774441]
[1724435656253,1.24220298,62959.0,62958.0,0.04774441]
[1724435656743,0.5757,62959.0,62958.0,0.04774441]
[1724435656933,0.5757,62959.0,62958.0,0.20658041]
[1724435656934,0.014,62959.0,62958.0,0.20658041]
[1724435657131,0.014,62959.0,62958.0,0.04774441]
[1724435657331,0.015,62959.0,62958.0,0.20658041]
[1724435657633,0.015,62959.0,62958.0,0.84192441]
[1724435658063,0.015,62959.0,62958.0,0.52425241]
[1724435658198,0.015,62959.0,62958.0,1.69989939]
[1724435658605,0.014,62959.0,62958.0,1.69989939]
[1724435658806,0.01333487,62959.0,62958.0,1.69989939]
[1724435659065,0.03824911,62959.0,62958.0,1.69989939]
[1724435659221,0.03824911,62959.0,62958.0,1.88319939]
[1724435659422,0.03924911,62959.0,62958.0,1.88319939]
[1724435660316,0.03924911,62959.0,62958.0,2.19987139]
[1724435660317,0.02591424,62959.0,62958.0,2.19987139]
[1724435660508,0.02591424,62959.0,62958.0,2.20087139]
[1724435660509,0.03991424,62959.0,62958.0,2.20087139]
[1724435660720,0.00814724,62959.0,62958.0,2.52154339]
[1724435660897,1e-08,62963.0,62962.0,2.023329]
[1724435661219,1e-08,62963.0,62962.0,2.50498298]
[1724435661373,1e-08,62963.0,62962.0,2.82463398]
[1724435661586,1e-08,62963.0,62962.0,2.18433198]
[1724435661991,0.00100001,62963.0,62962.0,2.19033198]
[1724435662593,0.00100001,62963.0,62962.0,2.20433198]
[1724435663605,0.00100001,62963.0,62962.0,1.88068098]
[1724435663606,1e-08,62963.0,62962.0,1.88068098]
[1724435663805,0.00010001,62963.0,62962.0,0.794127]
[1724435664002,0.00010001,62963.0,62962.0,0.001]
[1724435664261,0.00010001,62963.0,62962.0,0.015]
[1724435664650,0.00010001,62963.0,62962.0,0.794127]
[1724435664764,0.00210001,62963.0,62962.0,0.014]
[1724435664970,0.00210001,62963.0,62958.0,0.04674441]
[1724435665210,0.02501375,62963.0,62958.0,0.04674441]
[1724435665408,0.02501375,62963.0,62962.0,0.006]
[1724435665625,0.02701375,62963.0,62962.0,0.165825]
[1724435665766,0.02701375,62963.0,62962.0,0.483476]
[1724435665968,0.02701375,62963.0,62962.0,0.801127]
[1724435666190,0.02701375,62963.0,62962.0,0.483476]
[1724435666739,0.02501375,62963.0,62962.0,0.482476]
[1724435666961,0.02501375,62963.0,62962.0,0.794127]
[1724435667097,0.02801375,62963.0,62962.0,0.794127]
[1724435667306,0.02801375,62963.0,62962.0,0.476476]
[1724435667508,0.02501375,62963.0,62962.0,0.476476]
[1724435667933,0.02801375,62963.0,62962.0,0.165825]
[1724435668135,0.02801375,62963.0,62962.0,0.159825]
[1724435668338,0.02801375,62963.0,62959.0,0.317666]
[1724435668339,0.02501375,62963.0,62959.0,0.317666]
[1724435668543,0.02501375,62963.0,62962.0,0.013]
[1724435668918,0.02501375,62963.0,62962.0,0.489476]
[1724435669121,0.02501375,62963.0,62962.0,0.171825]
[1724435669314,0.02501375,62963.0,62962.0,0.489476]
[1724435669543,0.02501375,62963.0,62962.0,0.171825]
[1724435669910,0.02501375,62963.0,62962.0,1.8579575]
[1724435670098,0.02501375,62963.0,62962.0,2.53039924]
[1724435670099,7.5e-07,62963.0,62962.0,2.53039924]
[1724435670375,0.0001,62970.0,62965.0,1.998362]
[1724435670680,0.0001,62970.0,62965.0,2.47700098]
[1724435670906,0.0001,62970.0,62965.0,2.15936498]
[1724435671031,0.0001,62970.0,62965.0,2.16036498]
[1724435671237,0.0001,62970.0,62965.0,2.15936498]
[1724435671436,0.0001,62970.0,62965.0,2.16036498]
[1724435671662,0.0001,62970.0,62965.0,2.17436498]
[1724435671862,0.0001,62970.0,62965.0,2.17336498]
[1724435672063,0.0001,62970.0,62965.0,2.17736498]
[1724435673609,0.03897876,62966.0,62965.0,2.17736498]
[1724435674027,0.1002,62979.0,62968.0,0.002]
[1724435674268,0.0709229,63011.0,62968.0,0.002]
[1724435674269,0.20415273,63024.0,63023.0,0.317344]
[1724435674463,0.00090961,63055.0,63023.0,0.317344]
[1724435674464,1e-08,63030.0,63025.0,0.03186]
[1724435674673,0.07178464,63055.0,63025.0,0.03186]
[1724435674674,0.22071773,63036.0,63035.0,0.79235359]
[1724435674876,0.22071773,63036.0,63035.0,0.47506959]
[1724435675337,0.22071773,63036.0,63010.0,0.40627554]
[1724435675338,0.00906401,63029.0,63015.0,0.5851]
[1724435675479,0.3905,63028.0,63010.0,0.03186]
[1724435675678,0.3905,63028.0,63018.0,0.317366]
[1724435675892,0.3905,63028.0,63020.0,0.158678]
[1724435676086,0.3905,63028.0,63025.0,0.158665]
[1724435676290,0.3905,63028.0,63006.0,0.1994]
[1724435676291,0.00906401,63029.0,63007.0,0.39697318]
[1724435676502,0.00906401,63029.0,63007.0,0.3938]
[1724435676700,0.0001,63028.0,63020.0,0.158677]
[1724435676907,0.0001,63028.0,63007.0,0.3938]
[1724435677155,0.0001,63028.0,63012.0,0.158699]
[1724435677362,0.0031,63028.0,63025.0,0.001]
[1724435677749,0.0031,63028.0,63014.0,0.16186666]
[1724435677750,0.0001,63028.0,63014.0,0.16186666]
[1724435677925,0.0001,63028.0,63015.0,0.16400298]
[1724435678129,0.0031,63028.0,63015.0,0.16400298]
[1724435678533,0.0031,63028.0,63007.0,0.007]
[1724435678762,0.72730298,63027.0,63007.0,0.16500298]
[1724435679082,0.72730298,63027.0,63008.0,0.16400298]